bitfinex/quotes_SOLUSD_20240809
["timestamp","ask_amount","ask_price","bid_price","bid_amount"]
[1723216207704,44.61,154.02,153.93,15.0863]
[1723216208837,44.61,153.99,153.93,15.0863]
[1723216209129,6.4948,153.97,153.9,6.1169]
[1723216209303,1.62438374,153.96,153.9,6.1169]
[1723216210010,0.12549,153.95,153.9,6.1169]
[1723216210328,8.3712647,153.95,153.88,15.0863]
[1723216210533,6.4964,153.93,153.88,15.0863]
[1723216210827,6.4964,153.93,153.85,6.0006]
[1723216210828,20.0,153.98,153.85,6.0006]
[1723216211029,0.25098,153.97,153.85,6.0006]
[1723216211228,20.0,153.98,153.85,6.0006]
[1723216211529,1.62409123,154.04,153.88,44.61]
[1723216211707,44.61,154.02,153.86,15.3838]
[1723216211913,1.62410374,154.01,153.87,0.12549]
[1723216212136,1.62410374,154.01,153.87,0.25098]
[1723216212303,6.4939,153.99,153.86,60.3838]
[1723216212501,6.4947,153.97,153.87,45.0]
[1723216212719,20.25098,153.98,153.86,60.3838]
[1723216212926,20.12549,153.98,153.87,45.0]
[1723216213116,0.12549,153.97,153.86,15.3838]
[1723216213411,1.87557661,153.97,153.86,15.3838]
[1723216213614,46.87557661,153.97,153.86,15.3838]
[1723216213819,0.12549,153.93,153.86,15.3838]
[1723216214018,0.12549,153.93,153.85,6.0006]
[1723216214019,0.12549,153.91,153.85,6.0006]
[1723216214337,0.12549,153.91,153.82,15.3838]
[1723216214338,53.37341739,153.91,153.82,15.3838]
[1723216214635,0.12549,153.89,153.82,15.3838]
[1723216214842,44.61,153.9,153.82,15.3838]
[1723216215136,73.62534603,153.89,153.82,15.3838]
[1723216215434,73.62534603,153.89,153.77,15.5506]
[1723216215435,0.12549,153.86,153.77,15.5506]
[1723216215606,1.75115401,153.86,153.77,15.5506]
[1723216215806,1.87664401,153.86,153.77,15.5506]
[1723216216210,44.61,153.93,153.77,15.5506]
[1723216216520,46.2350214,153.93,153.78,1.30001712]
[1723216216727,46.2350214,153.93,153.77,15.5506]
[1723216216728,6.497,153.92,153.77,15.5506]
[1723216216955,53.12200496,153.92,153.77,15.5506]
[1723216217134,53.12200496,153.92,153.78,45.50196]
[1723216217625,0.12549,153.89,153.78,0.37647]
[1723216217812,1.87635285,153.89,153.78,0.25098]
[1723216218207,46.87635285,153.89,153.78,0.25098]
[1723216218420,44.61,153.87,153.77,15.5506]
[1723216218749,0.12549,153.88,153.77,15.5506]
[1723216218750,0.12549,153.83,153.77,15.5506]
[1723216218911,6.5011,153.82,153.77,15.5506]
[1723216219109,52.7374422,153.81,153.71,15.8478]
[1723216219311,6.62739,153.8,153.71,15.8478]
[1723216219510,20.25098,153.8,153.71,15.8478]
[1723216219754,6.62649,153.83,153.71,15.8478]
[1723216219755,44.61,153.84,153.72,1.30086443]
[1723216219910,20.0,153.86,153.72,45.91086443]
[1723216220322,21.62541049,153.89,153.72,45.91086443]
[1723216220530,21.62541049,153.89,153.72,44.61]
[1723216220757,21.62541049,153.89,153.73,45.50196]
[1723216221107,6.499,153.87,153.75,0.12549]
[1723216221334,21.62560988,153.86,153.75,0.25098]
[1723216221834,1.62569498,153.85,153.76,0.12549]
[1723216222147,6.4989,153.88,153.76,0.25098]
[1723216222317,21.62563304,153.89,153.68,22.2044]
[1723216222318,6.5013,153.82,153.68,22.2044]
[1723216222640,6.5015,153.81,153.68,22.2044]
[1723216222826,52.73804205,153.8,153.68,22.2044]
[1723216223222,26.5025,153.79,153.68,22.2044]
[1723216223426,1.6264674,153.78,153.68,22.2044]
[1723216223615,20.0,153.79,153.68,22.2044]
[1723216224020,0.12549,153.8,153.68,22.2044]
[1723216224223,98.24048653,153.8,153.68,22.2044]
[1723216224426,0.12549,153.78,153.68,22.2044]
[1723216224646,0.25098,153.78,153.68,22.2044]
[1723216224941,20.0,153.79,153.7,1.30116525]
[1723216225149,20.0,153.79,153.69,45.4295369]
[1723216225460,6.5018,153.81,153.69,0.8195369]
[1723216225632,20.0,153.8,153.7,0.12549]
[1723216225842,20.0,153.8,153.7,0.25098]
[1723216226344,1.62625642,153.79,153.69,0.8195369]
[1723216226569,0.12549,153.79,153.69,0.8195369]
[1723216226738,20.0,153.79,153.7,1.55207607]
[1723216226935,20.0,153.79,153.7,0.25098]
[1723216227360,8.1291063,153.78,153.69,0.8195369]
[1723216227675,20.0,153.77,153.69,0.8195369]
[1723216227966,0.12549,153.75,153.69,0.8195369]
[1723216228346,0.12549,153.73,153.69,0.8195369]
[1723216228542,1.6269324,153.73,153.69,0.8195369]
[1723216228738,44.73549,153.72,153.69,0.8195369]
[1723216228969,1.62711779,153.71,153.69,0.8195369]
[1723216229275,8.38425314,153.7,153.69,0.8195369]
[1723216229760,73.63523314,153.7,153.69,0.8195369]
[1723216229963,73.63523314,153.7,153.54,0.8195369]
[1723216229964,0.12549,153.69,153.54,0.8195369]
[1723216230159,44.61,153.64,153.54,0.8195369]
[1723216230669,20.0,153.63,153.54,0.8195369]
[1723216231582,44.61,153.61,153.54,0.8195369]
[1723216232066,1.62820421,153.6,153.54,0.8195369]
[1723216232363,44.61,153.58,153.54,0.8195369]
[1723216232570,0.12549,153.57,153.54,0.8195369]
[1723216232740,21.87961013,153.57,153.54,0.8195369]
[1723216233064,44.61,153.55,153.54,0.8195369]
[1723216233375,66.61540122,153.55,153.54,0.8195369]
[1723216233539,111.74089122,153.55,153.54,0.8195369]
[1723216233749,20.0,153.55,153.54,0.8195369]
[1723216234149,1.62849959,153.6,153.54,0.8195369]
[1723216234354,44.61,153.58,153.54,0.8195369]
[1723216234556,20.0,153.57,153.54,0.8195369]
[1723216234840,1.12751672,153.64,153.54,0.8195369]
[1723216235033,1.62775694,153.66,153.54,0.8195369]
[1723216235245,44.61,153.64,153.54,0.8195369]
[1723216235437,1.62806657,153.63,153.54,0.8195369]
[1723216235867,691.5174,153.67,153.55,0.37647]
[1723216236067,6.5085,153.65,153.56,16.207]
[1723216236270,1.6277823,153.64,153.56,16.207]
[1723216236440,685.01,153.67,153.56,16.207]
[1723216236441,8.13569629,153.66,153.56,16.207]
[1723216236643,2.59064858,153.72,153.56,16.207]
[1723216236644,44.61,153.7,153.58,6.1424]
[1723216236965,44.61,153.7,153.59,46.55289429]
[1723216237175,44.61,153.7,153.59,45.25098]
[1723216237467,44.61,153.7,153.58,36.26789]
[1723216237468,6.507,153.68,153.58,36.26789]
[1723216237641,44.61,153.67,153.58,36.1424]
[1723216237845,1.62748668,153.66,153.58,36.1424]
[1723216238068,6.5082,153.66,153.58,6.1424]
[1723216238269,1.62770445,153.66,153.58,6.1424]
[1723216238443,6.5093,153.63,153.58,6.1424]
[1723216238642,52.74655477,153.64,153.58,6.1424]
[1723216238963,20.0,153.63,153.58,6.1424]
[1723216239481,44.61,153.61,153.56,16.207]
[1723216239684,21.62810261,153.6,153.54,0.8195369]
[1723216240056,20.0,153.6,153.54,0.8195369]
[1723216240254,44.61,153.64,153.54,0.8195369]
[1723216240558,8.38727113,153.65,153.54,0.8195369]
[1723216240775,20.0,153.64,153.54,0.8195369]
[1723216240962,51.24529,153.62,153.54,0.8195369]
[1723216241157,6.5108,153.59,153.54,0.8195369]
[1723216241363,44.61,153.59,153.54,0.8195369]
[1723216241587,1.62847133,153.58,153.54,0.8195369]
[1723216241786,0.12549,153.57,153.54,0.8195369]
[1723216242076,6.63799,153.55,153.54,0.8195369]
[1723216242290,28.39249909,153.55,153.54,0.8195369]
[1723216242578,28.64347909,153.55,153.54,0.8195369]
[1723216242755,73.64347909,153.55,153.54,0.8195369]
[1723216242956,20.0,153.55,153.54,0.8195369]
[1723216243175,20.12549,153.55,153.54,0.8195369]
[1723216243354,20.25098,153.55,153.54,0.8195369]
[1723216243769,20.0,153.55,153.54,0.8195369]
[1723216243963,28.26670718,153.55,153.54,0.8195369]
[1723216244185,0.12549,153.54,153.46,21.6415]
[1723216244390,44.61,153.52,153.46,28.1578]
[1723216244556,20.0,153.51,153.46,28.1578]
[1723216244753,1.62915761,153.5,153.46,21.6415]
[1723216244954,1.62915761,153.5,153.43,6.5172]
[1723216245266,1.62915761,153.5,153.41,16.3275]
[1723216245267,6.516,153.47,153.41,16.3275]
[1723216245463,1.6297048,153.46,153.39,0.8195369]
[1723216245766,9.09453605,153.56,153.4,21.2097]
[1723216245954,8.14162726,153.55,153.49,6.5149]
[1723216246155,1.62897537,153.54,153.4,21.2097]
[1723216246353,1.62929462,153.51,153.4,21.2097]
[1723216246551,44.61,153.47,153.42,6.518]
[1723216246779,44.61,153.47,153.4,21.2097]
[1723216246780,1.62969918,153.46,153.41,6.5184]
[1723216246981,44.61,153.47,153.41,6.5184]
[1723216247171,44.61,153.47,153.42,6.518]
[1723216247352,44.61,153.47,153.4,21.2097]
[1723216247559,44.61,153.53,153.41,1.30351555]
[1723216247762,44.61,153.53,153.4,21.2097]
[1723216247965,1.62899663,153.53,153.48,6.5154]
[1723216248167,1.62893127,153.55,153.47,6.5155]
[1723216248382,1.62893127,153.55,153.4,21.2097]
[1723216248383,6.513,153.54,153.41,0.25098]
[1723216248584,44.61,153.56,153.49,6.5149]
[1723216248585,51.1223,153.56,153.49,6.5149]
[1723216248790,44.61,153.56,153.5,6.5145]
[1723216248960,44.61,153.56,153.48,6.5152]
[1723216249160,26.5126,153.55,153.48,6.5152]
[1723216249576,1.62879198,153.58,153.42,1.55401358]
[1723216249790,6.5112,153.58,153.51,6.5138]
[1723216250086,52.7494653,153.59,153.5,15.3193]
[1723216250384,44.61,153.59,153.53,6.5132]
[1723216250566,44.61,153.59,153.5,15.3193]
[1723216250773,1.62854207,153.58,153.5,15.3193]
[1723216250972,51.1208,153.59,153.52,6.5134]
[1723216251278,20.0,153.58,153.52,6.5137]
[1723216251588,381.2,153.61,153.56,6.512]
[1723216251769,6.5101,153.61,153.55,6.5124]
[1723216252098,51.1196,153.62,153.56,6.512]
[1723216252300,51.1211,153.59,153.52,13.1357]
[1723216252468,44.61,153.62,153.57,6.5116]
[1723216252791,8.13802921,153.61,153.52,6.6221]
[1723216253001,44.61,153.62,153.52,6.6221]
[1723216253002,20.0,153.6,153.52,6.6221]
[1723216253284,44.61,153.65,153.53,45.37647]
[1723216253459,44.61,153.65,153.54,1.30230101]
[1723216253664,59.9293,153.68,153.55,0.25098]
[1723216253885,44.61,153.68,153.56,0.25098]
[1723216254096,44.61,153.61,153.42,21.7718]
[1723216254277,44.61,153.55,153.43,1.30295911]
[1723216254872,8.52735057,153.66,153.46,20.0]
[1723216255175,23.03017166,153.68,153.48,6.6221]
[1723216255176,44.61,153.63,153.48,6.6221]
[1723216255481,44.61,153.54,153.42,24.37055311]
[1723216255807,20.0,153.53,153.43,1.30317765]
[1723216256087,44.61,153.54,153.42,21.7718]
[1723216256474,44.61,153.57,153.43,1.30297048]
[1723216256674,20.0,153.56,153.53,6.5133]
[1723216256897,20.0,153.56,153.52,6.5137]
[1723216257184,6.5129,153.54,153.49,6.515]
[1723216257401,20.0,153.56,153.49,6.515]
[1723216257580,20.0,153.56,153.5,6.5144]
[1723216257772,20.0,153.56,153.43,1.30295023]
[1723216257973,20.0,153.56,153.44,0.12549]
[1723216258173,20.0,153.56,153.44,1.42827072]
[1723216258371,20.0,153.56,153.44,1.42832588]
[1723216258577,20.0,153.59,153.45,44.61]
[1723216258780,20.0,153.59,153.47,0.12549]
[1723216258974,44.61,153.63,153.5,0.12549]
[1723216259192,44.61,153.66,153.5,46.80425118]
[1723216259394,6.5091,153.63,153.58,6.5108]
[1723216259599,1.62773447,153.62,153.5,45.50196]
[1723216259884,51.37247166,153.68,153.5,45.50196]
[1723216259885,44.61,153.6,153.5,45.50196]
[1723216260073,1.62814224,153.59,153.5,45.0]
[1723216260288,44.61,153.6,153.5,45.0]
[1723216260675,20.0,153.59,153.5,45.0]
[1723216260875,20.0,153.59,153.52,6.5137]
[1723216261071,1.62818743,153.58,153.49,6.4783]
[1723216261296,6.5121,153.56,153.5,6.5142]
[1723216261492,20.0,153.59,153.49,6.4783]
[1723216261669,20.0,153.59,153.5,1.30252101]
[1723216261866,20.0,153.59,153.49,6.4783]
[1723216262081,26.5112,153.59,153.54,6.5129]
[1723216262283,20.0,153.59,153.52,6.5134]
[1723216262498,1.62821437,153.58,153.49,6.4783]
[1723216262689,20.0,153.59,153.5,45.0]
[1723216262880,6.5113,153.58,153.53,6.5133]
[1723216263095,20.0,153.59,153.54,6.5129]
[1723216263277,20.0,153.59,153.5,45.0]
[1723216263579,6.5105,153.6,153.54,6.5129]
[1723216263778,20.0,153.59,153.53,0.12549]
[1723216263985,51.1195,153.63,153.53,0.12549]
[1723216264198,44.61,153.63,153.53,0.12549]
[1723216264414,44.61,153.63,153.53,1.55330969]
[1723216264707,8.93090671,153.69,153.53,1.55330969]
[1723216264708,6.507,153.68,153.62,6.5094]
[1723216264912,44.61,153.69,153.63,0.12549]
[1723216265211,44.61,153.66,153.56,45.12549]
[1723216265384,1.6275438,153.65,153.59,6.5107]
[1723216265579,8.13615098,153.64,153.59,6.5107]
[1723216265818,1.62767353,153.63,153.55,21.944]
[1723216266095,44.61,153.6,153.55,21.944]
[1723216266590,6.76076558,153.64,153.55,21.944]
[1723216266591,44.61,153.63,153.55,21.944]
[1723216266790,44.61,153.6,153.55,21.944]
[1723216267008,21.6281604,153.59,153.5,6.3024]
[1723216267217,6.5113,153.58,153.5,6.3024]
[1723216267406,21.6281604,153.59,153.52,6.5137]
[1723216267407,6.5117,153.57,153.52,6.5137]
[1723216267806,20.0,153.59,153.5,6.3024]
[1723216267988,20.0,153.59,153.53,6.513]
[1723216268187,26.5108,153.59,153.53,6.513]
[1723216268387,20.0,153.59,153.56,6.5117]
[1723216268603,20.0,153.59,153.54,6.5125]
[1723216268907,20.0,153.59,153.51,0.12549]
[1723216269218,6.5086,153.65,153.59,6.5107]
[1723216269429,1.6277283,153.64,153.51,45.50196]
[1723216269620,44.61,153.66,153.53,0.12549]
[1723216269924,6.5076,153.67,153.55,6.37169]
[1723216270222,6.5076,153.67,153.57,0.12549]
[1723216270412,6.5071,153.68,153.57,1.4274433]
[1723216270612,44.61,153.69,153.59,0.12549]
[1723216270819,18.43220828,153.73,153.61,0.12549]
[1723216270820,44.61,153.72,153.61,0.12549]
[1723216271006,44.61,153.72,153.61,46.80361617]
[1723216271217,2.607076,153.71,153.61,46.80361617]
[1723216271412,51.1156,153.72,153.62,6.238]
[1723216271634,6.5049,153.73,153.63,46.80351139]
[1723216271844,6.5054,153.72,153.63,46.80351139]
[1723216272126,46.23687894,153.75,153.63,45.25098]
[1723216272505,44.61,153.72,153.63,45.25098]
[1723216272736,6.5076,153.67,153.62,6.238]
[1723216273032,28.13526079,153.66,153.62,6.238]
[1723216273232,26.5078,153.66,153.62,6.238]
[1723216273430,44.61,153.69,153.62,6.238]
[1723216273735,20.0,153.68,153.62,6.238]
[1723216274735,20.0,153.69,153.62,6.238]
[1723216274910,6.5058,153.71,153.63,45.12549]
[1723216275106,6.5053,153.72,153.63,45.12549]
[1723216275336,6.5062,153.7,153.63,45.12549]
[1723216275542,51.37587845,153.75,153.62,6.48898]
[1723216275543,1.62713813,153.69,153.62,6.238]
[1723216275837,6.5073,153.68,153.62,6.238]
[1723216276000,1.62713706,153.67,153.62,6.238]
[1723216276202,1.62713706,153.72,153.62,6.238]
[1723216276607,6.5062,153.7,153.62,6.238]
[1723216276811,26.5067,153.69,153.62,6.238]
[1723216277005,51.37587845,153.75,153.63,46.30168951]
[1723216277208,53.00268562,153.75,153.63,45.0]
[1723216277739,6.5066,153.69,153.63,45.0]
[1723216277912,6.507,153.68,153.62,6.238]
[1723216278431,1.62712304,153.67,153.62,6.238]
[1723216278609,1.62739632,153.71,153.62,6.238]
[1723216278817,26.5057,153.71,153.62,6.238]
[1723216279137,20.0,153.71,153.64,0.12549]
[1723216279336,1.62675092,153.7,153.63,45.0]
[1723216279510,6.5073,153.68,153.62,6.238]
[1723216279717,6.5063,153.7,153.62,6.238]
[1723216279937,20.0,153.69,153.63,45.25098]
[1723216280122,26.5066,153.69,153.63,45.25098]
[1723216280439,26.5066,153.69,153.63,45.0]
[1723216280440,1.62698504,153.68,153.63,45.0]
[1723216280619,21.62714153,153.72,153.63,45.0]
[1723216280824,6.76589677,153.74,153.63,45.0]
[1723216281051,6.76589677,153.74,153.65,15.7043]
[1723216281209,1.62628097,153.8,153.66,45.37647]
[1723216281408,6.5037,153.76,153.66,46.80319574]
[1723216281607,6.5037,153.76,153.66,45.50196]
[1723216281917,6.5043,153.75,153.66,45.50196]
[1723216282112,6.5045,153.74,153.66,45.25098]
[1723216282330,16.2556,153.8,153.67,1.55231731]
[1723216282635,51.37354239,153.81,153.69,0.12549]
[1723216282636,6.5028,153.78,153.69,0.12549]
[1723216282844,6.5032,153.77,153.69,45.12549]
[1723216283137,6.5036,153.76,153.69,45.0]
[1723216283345,67.62814239,153.81,153.7,0.12549]
[1723216283632,67.62814239,153.81,153.7,0.25098]
[1723216283939,20.0,153.8,153.7,0.25098]
[1723216284234,6.5034,153.77,153.7,0.25098]
[1723216284441,21.62621897,153.76,153.7,0.25098]
[1723216284662,20.0,153.76,153.69,45.0]
[1723216285040,1.62643454,153.75,153.68,6.5078]
[1723216285232,46.23643454,153.75,153.68,6.5078]
[1723216285438,44.61,153.72,153.65,15.7043]
[1723216285660,1.87812523,153.71,153.65,15.7043]
[1723216285840,20.0,153.71,153.65,15.7043]
[1723216286351,20.0,153.74,153.66,1.30133316]
[1723216286533,6.5028,153.78,153.66,1.30133316]
[1723216286735,20.0,153.77,153.67,0.25098]
[1723216286950,20.0,153.77,153.68,0.12549]
[1723216287152,6.5037,153.76,153.68,0.12549]
[1723216287461,6.5037,153.76,153.68,0.25098]
[1723216287664,20.0,153.75,153.69,0.12549]
[1723216287872,20.0,153.75,153.68,0.12549]
[1723216288254,6.5041,153.75,153.68,0.12549]
[1723216288562,6.5046,153.74,153.68,0.12549]
[1723216288760,6.5046,153.74,153.66,0.12549]
[1723216288964,6.5046,153.74,153.66,45.50196]
[1723216289261,21.62654446,153.73,153.65,15.7043]
[1723216289658,20.0,153.73,153.65,15.7043]
[1723216289849,20.0,153.75,153.65,15.7043]
[1723216290044,6.5055,153.72,153.65,15.7043]
[1723216290260,1.62684858,153.71,153.65,15.7043]
[1723216290445,1.6268503,153.7,153.65,15.7043]
[1723216290836,44.61,153.75,153.65,15.7043]
[1723216291144,20.0,153.74,153.65,15.7043]
[1723216291556,20.0,153.74,153.66,45.0]
[1723216291758,21.75194218,153.77,153.67,0.12549]
[1723216291961,21.75194218,153.77,153.67,0.25098]
[1723216292162,6.504,153.76,153.67,0.25098]
[1723216292363,20.0,153.75,153.67,0.25098]
[1723216292571,20.0,153.75,153.67,1.55221026]
[1723216292747,20.0,153.75,153.68,0.25098]
[1723216292948,6.5031,153.78,153.67,0.12549]
[1723216292949,20.0,153.77,153.67,0.12549]
[1723216293151,6.504,153.75,153.67,0.25098]
[1723216293767,6.5032,153.77,153.67,1.5520754]
[1723216293940,6.5032,153.77,153.68,0.12549]
[1723216294141,20.0,153.76,153.68,1.67745291]
[1723216294342,20.0,153.76,153.69,0.12549]
[1723216294794,6.75379277,153.81,153.7,0.12549]
[1723216294949,6.75379277,153.81,153.72,0.12549]
[1723216295150,97.10412026,153.87,153.72,46.55155383]
[1723216295350,60.8577,153.87,153.73,0.25098]
[1723216295762,6.5011,153.82,153.74,0.12549]
[1723216295970,67.60920776,153.87,153.74,1.55154524]
[1723216296157,6.5007,153.83,153.74,1.55154524]
[1723216296356,6.5003,153.84,153.75,0.25098]
[1723216296762,6.5003,153.84,153.76,0.12549]
[1723216296952,6.5007,153.83,153.76,0.12549]
[1723216297580,44.61,153.87,153.78,6.5599]
[1723216297754,44.61,153.87,153.79,45.0]
[1723216297950,44.61,153.87,153.78,6.5599]
[1723216297951,6.5011,153.82,153.78,6.5599]
[1723216298155,1.6256381,153.81,153.78,6.5599]
[1723216298665,8.1272381,153.81,153.78,6.5599]
[1723216299257,20.0,153.83,153.78,6.5599]
[1723216299454,20.0,153.83,153.78,7.86050889]
[1723216299655,60.45492413,153.87,153.78,7.86050889]
[1723216299876,6.4995,153.86,153.79,45.12549]
[1723216300065,6.4995,153.86,153.8,1.30023622]
[1723216300261,47.214206,153.87,153.79,45.12549]
[1723216300462,6.4999,153.85,153.79,45.12549]
[1723216300662,6.4994,153.86,153.79,46.42574244]
[1723216300966,6.4994,153.86,153.79,45.12549]
[1723216301170,6.4999,153.85,153.79,45.12549]
[1723216301375,6.5002,153.84,153.79,45.0]
[1723216301768,6.4998,153.85,153.79,45.0]
[1723216301962,53.713506,153.87,153.8,1.30027598]
[1723216302260,20.0,153.86,153.8,1.30022415]
[1723216302468,20.0,153.86,153.81,0.25098]
[1723216302671,44.61,153.9,153.81,0.25098]
[1723216302850,6.4989,153.88,153.81,0.25098]
[1723216303054,44.61,153.9,153.81,0.25098]
[1723216303603,51.1077,153.9,153.81,0.25098]
[1723216303895,44.61,153.9,153.81,0.25098]
[1723216304090,6.4987,153.88,153.81,0.25098]
[1723216304875,6.4982,153.89,153.81,0.25098]
[1723216305394,20.0,153.88,153.81,0.25098]
[1723216305776,43.0498,153.85,153.79,45.0]
[1723216305981,36.55,153.83,153.78,6.5599]
[1723216306902,36.55,153.85,153.78,6.5599]
[1723216307195,36.55,153.81,153.78,6.5599]
[1723216307383,36.55,153.79,153.78,6.5599]
[1723216307988,6.5025,153.79,153.77,15.5506]
[1723216308191,6.5035,153.77,153.74,6.3632]
[1723216308395,0.12549,153.82,153.72,15.799]
[1723216308396,36.55,153.75,153.72,15.799]
[1723216308592,36.55,153.73,153.72,15.799]
[1723216308768,39.1602482,153.84,153.72,15.799]
[1723216308769,36.55,153.77,153.72,15.799]
[1723216308974,36.55,153.79,153.72,15.799]
[1723216309491,6.74275937,153.86,153.73,1.30079784]
[1723216309679,36.55,153.82,153.74,0.12549]
[1723216309876,20.0,153.85,153.74,0.12549]
[1723216309877,36.55,153.8,153.74,0.12549]
[1723216310178,36.55,153.78,153.73,0.25098]
[1723216310380,36.55,153.78,153.74,0.12549]
[1723216310775,36.55,153.8,153.74,0.25098]
[1723216311203,36.55,153.8,153.75,0.12549]
[1723216311678,36.55,153.8,153.74,0.12549]
[1723216311873,44.67795268,153.8,153.74,0.12549]
[1723216312082,43.0522,153.8,153.74,0.12549]
[1723216312286,36.55,153.84,153.72,15.799]
[1723216312287,36.55,153.76,153.72,15.799]
[1723216313284,36.55,153.74,153.72,15.799]
[1723216314794,36.55,153.76,153.72,15.799]
[1723216315001,1.62621124,153.81,153.72,15.799]
[1723216315185,36.55,153.8,153.73,1.30063631]
[1723216315383,36.55,153.82,153.73,37.85063631]
[1723216315695,36.55,153.82,153.75,0.12549]
[1723216315885,36.55,153.84,153.75,1.67684993]
[1723216316099,18.87212455,153.9,153.77,16.4665]
[1723216316305,36.55,153.82,153.78,45.0]
[1723216316595,36.55,153.86,153.78,45.12549]
[1723216316897,36.55,153.84,153.78,45.12549]
[1723216317405,36.55,153.84,153.78,46.42566702]
[1723216317894,36.55,153.86,153.79,0.25098]
[1723216318198,36.55,153.84,153.8,0.12549]
[1723216318401,36.55,153.84,153.78,45.12549]
[1723216318583,36.55,153.82,153.78,45.0]
[1723216318793,36.55,153.84,153.79,0.50196]
[1723216319298,36.55,153.84,153.79,0.25098]
[1723216319501,36.55,153.84,153.78,45.0]
[1723216319803,36.55,153.84,153.77,16.4665]
[1723216319804,20.0,153.85,153.77,16.59199]
[1723216319980,6.5011,153.82,153.77,16.4665]
[1723216320406,6.5003,153.84,153.77,16.4665]
[1723216320576,21.62552342,153.85,153.77,16.4665]
[1723216320577,20.0,153.83,153.77,16.4665]
[1723216320778,44.7,153.89,153.78,1.30018667]
[1723216321104,6.499,153.87,153.78,1.30018667]
[1723216321405,6.499,153.87,153.77,16.4665]
[1723216321406,46.32525979,153.89,153.77,16.4665]
[1723216321600,44.7,153.89,153.78,0.12549]
[1723216321786,45.5195369,153.92,153.8,0.12549]
[1723216322119,6.4981,153.89,153.8,45.50196]
[1723216322300,6.4992,153.87,153.8,45.50196]
[1723216322501,47.14458376,153.92,153.8,45.50196]
[1723216322707,6.499,153.87,153.8,45.25098]
[1723216322881,1.62509994,153.86,153.8,45.0]
[1723216323083,46.32509994,153.86,153.79,6.5702]
[1723216323387,26.5001,153.85,153.79,6.5702]
[1723216323586,1.6253526,153.84,153.79,6.5702]
[1723216323797,8.1255526,153.84,153.79,6.5702]
[1723216324499,20.0,153.85,153.79,6.5702]
[1723216324719,6.4986,153.88,153.79,6.5702]
[1723216324898,44.7,153.89,153.79,6.5702]
[1723216324899,51.1997,153.86,153.79,6.5702]
[1723216325290,1.62533983,153.85,153.79,6.5702]
[1723216325492,21.62533983,153.85,153.79,6.5702]
[1723216325692,6.5006,153.84,153.79,6.5702]
[1723216325988,20.0,153.85,153.79,6.5702]
[1723216326403,20.0,153.85,153.8,45.12549]
[1723216326906,44.7,153.89,153.8,46.42559077]
[1723216327205,6.4973,153.91,153.81,0.25098]
[1723216327407,45.5195369,153.92,153.83,0.12549]
[1723216327602,6.4988,153.88,153.83,0.12549]
[1723216327789,6.4994,153.86,153.8,45.0]
[1723216327989,8.12428485,153.87,153.8,45.0]
[1723216328190,6.4993,153.87,153.8,45.0]
[1723216328406,17.0624369,153.92,153.81,1.67659264]
[1723216328407,45.5195369,153.92,153.81,1.67659264]
[1723216328712,45.5195369,153.92,153.83,16.425]
[1723216328882,45.5195369,153.92,153.84,46.55071908]
[1723216329304,1.62476463,153.91,153.83,16.425]
[1723216329484,6.4993,153.87,153.83,16.425]
[1723216329697,1.62513243,153.86,153.83,16.425]
[1723216330005,6.4999,153.85,153.83,16.425]
[1723216330181,20.0,153.88,153.79,22.6357]
[1723216330182,6.5005,153.84,153.79,22.6357]